bitfinex-derivatives/quotes_ETHF0:USTF0_20250316
["timestamp","ask_amount","ask_price","bid_price","bid_amount"]
[1742133295864,1.06505,1877.8,1877.7,1.74688]
[1742133296165,1.06505,1877.8,1877.7,0.6818]
[1742133296359,2.46405,1877.8,1877.7,0.6818]
[1742133296954,1.06505,1877.8,1877.7,1.74691]
[1742133297160,1.06505,1877.8,1877.7,0.6818]
[1742133297456,1.06522,1877.6,1877.5,1.06522]
[1742133297660,0.00798785,1877.9,1877.8,1.06505]
[1742133297852,1.07297785,1877.9,1877.8,1.06505]
[1742133298164,4.28077785,1877.9,1877.8,0.7129]
[1742133298359,1.07297785,1877.9,1877.8,1.77795]
[1742133299060,1.07297785,1877.9,1877.8,0.7129]
[1742133299262,1.07297785,1877.9,1877.8,1.77795]
[1742133300060,1.07297785,1877.9,1877.8,0.7129]
[1742133300468,1.07297785,1877.9,1877.8,1.77795]
[1742133300763,1.07297785,1877.9,1877.8,0.7129]
[1742133300965,4.28077785,1877.9,1877.8,0.7129]
[1742133301765,1.07297785,1877.9,1877.8,0.7129]
[1742133302564,4.28077785,1877.9,1877.8,3.22905]
[1742133302865,6.83759355,1878.1,1877.8,5.72905]
[1742133303069,4.2726,1878.3,1878.2,1.06482]
[1742133303273,1.06485,1878.2,1878.1,1.06484]
[1742133303469,2.47075,1878.2,1878.1,1.06484]
[1742133303671,1.06491,1878.1,1878.0,1.0649]
[1742133303972,1.06491,1878.1,1878.0,2.516]
[1742133304166,2.47876785,1878.2,1878.1,1.06488]
[1742133304363,2.47876785,1878.2,1878.1,1.3726]
[1742133305065,1.06494,1878.0,1877.9,0.69038785]
[1742133305262,1.06492,1878.1,1878.0,1.06494]
[1742133305457,1.07285785,1878.2,1878.1,1.06488]
[1742133305664,1.06491,1878.1,1878.0,1.06489]
[1742133306562,2.40654785,1878.2,1878.1,1.06488]
[1742133307267,0.00798785,1878.2,1878.1,1.06488]
[1742133307963,0.00798785,1878.2,1878.1,2.40068]
[1742133308276,1.07280785,1878.2,1878.1,2.40068]
[1742133308469,1.06494,1878.0,1877.9,0.00798785]
[1742133308677,1.06494,1878.0,1877.9,1.34378785]
[1742133309175,2.40294,1878.0,1877.9,1.34378785]
[1742133310575,2.40294,1878.0,1877.9,0.00798785]
[1742133312477,1.06494,1878.0,1877.9,1.07297785]
[1742133312781,1.06494,1878.0,1877.9,1.73837785]
[1742133313471,1.06494,1878.0,1877.9,0.67338785]
[1742133313677,1.06494,1878.0,1877.9,1.73837785]
[1742133313877,1.06494,1878.0,1877.9,3.10857785]
[1742133314180,1.06494,1878.0,1877.9,2.04358785]
[1742133315281,2.41034,1878.0,1877.9,0.00798785]
[1742133317467,1.06533,1877.3,1877.2,0.6797]
[1742133317684,5.32527,1877.9,1877.2,0.6797]
[1742133317685,1.06532,1877.4,1877.3,1.06531]
[1742133317883,1.06533,1877.3,1877.2,2.45906]
[1742133318279,4.27313,1877.3,1877.2,0.714]
[1742133318470,1.06545,1877.1,1877.0,1.06546]
[1742133318671,1.06545,1877.1,1877.0,1.3607]
[1742133318973,1.06567,1876.8,1876.6,3.2078]
[1742133319277,1.06567,1876.7,1876.6,1.3607]
[1742133319480,1.06567,1876.7,1876.1,3.2078]
[1742133319481,3.2078,1876.7,1876.1,3.2078]
[1742133319777,1.06613,1875.9,1875.8,1.428]
[1742133319988,2.66499,1876.2,1875.8,0.7318]
[1742133320273,2.66499,1876.2,1875.3,18.35868974]
[1742133320274,0.00798785,1876.0,1875.3,22.2906263]
[1742133320480,1.06619,1875.8,1875.7,1.06623]
[1742133320780,0.00798785,1876.0,1875.4,4.09399]
[1742133320974,3.21578785,1876.0,1875.5,1.4356]
[1742133321182,4.28188785,1876.0,1875.9,1.06613]
[1742133321369,0.00798785,1876.0,1875.9,1.06613]
[1742133321577,1.07405785,1876.0,1875.9,1.06613]
[1742133322085,1.06615,1875.9,1875.8,1.06617]
[1742133322278,1.06619,1875.8,1875.7,1.4356]
[1742133322583,1.06619,1875.8,1875.3,2.66615]
[1742133322584,3.62979355,1875.8,1875.2,3.2078]
[1742133322780,11.66862785,1876.0,1874.3,5.33512]
[1742133322781,3.2078,1875.3,1874.9,5.73468]
[1742133323076,1.4528,1875.2,1875.1,1.06658]
[1742133323282,1.06654,1875.2,1875.1,1.06657]
[1742133323480,1.06664,1875.0,1874.9,4.668]
[1742133323675,7.32682,1875.3,1874.9,1.4602]
[1742133323676,1.06662,1875.1,1874.9,1.4602]
[1742133323979,3.62979355,1875.4,1875.3,1.06647]
[1742133324178,3.2078,1875.4,1874.9,1.81412644]
[1742133324382,1.06664,1875.0,1874.9,2.52686]
[1742133324682,3.62979355,1875.4,1875.3,1.06647]
[1742133324870,3.2078,1875.7,1875.6,1.0663]
[1742133325276,4.27406,1875.7,1875.6,1.0663]
[1742133325484,1.06633,1875.6,1875.5,1.06632]
[1742133325684,4.27407,1875.7,1875.6,1.0663]
[1742133325876,3.2078,1875.9,1875.8,1.06619]
[1742133326180,3.2078,1875.9,1875.5,3.866]
[1742133326381,1.06624,1875.7,1875.6,2.53036]
[1742133326580,1.06623,1875.8,1875.6,2.53036]
[1742133326778,1.06623,1875.8,1875.7,1.4641]
[1742133327177,1.06623,1875.8,1875.3,5.87397]
[1742133327178,8.23579355,1875.9,1875.3,3.2078]
[1742133327384,3.2078,1875.5,1874.7,4.13113]
[1742133327683,3.2078,1875.5,1875.1,1.06654]
[1742133327684,1.0665,1875.3,1875.1,1.06654]
[1742133327884,1.06658,1875.1,1875.0,1.4308]
[1742133328086,1.06658,1875.1,1875.0,2.1631]
[1742133328382,1.06658,1875.1,1875.0,3.22974]
[1742133328590,0.6967,1875.4,1875.0,2.1631]
[1742133328775,9.50355355,1875.5,1875.3,1.06646]
[1742133328776,5.01579355,1875.5,1875.3,1.06646]
[1742133328977,3.2078,1875.7,1875.4,1.3842]
[1742133329178,1.06635,1875.6,1875.5,1.06636]
[1742133329381,4.2741,1875.7,1875.4,1.3842]
[1742133329586,1.0662,1875.8,1875.7,1.06624]
[1742133329886,0.00798785,1876.0,1875.9,1.06613]
[1742133330480,0.00798785,1876.0,1875.9,4.95033]
[1742133330787,1.386,1876.6,1876.3,1.06586]
[1742133330983,1.06584,1876.5,1876.4,2.45004]
[1742133331184,1.06584,1876.5,1876.4,1.3842]
[1742133331382,6.29399355,1876.7,1876.4,1.3842]
[1742133331383,1.06572,1876.7,1876.4,1.3842]
[1742133331587,7.7827,1876.8,1876.4,1.3842]
[1742133331782,0.00798785,1876.7,1876.4,1.39218785]
[1742133331979,0.00798785,1876.7,1876.6,1.06573]
[1742133332285,1.07365785,1876.7,1876.6,1.06573]
[1742133332485,0.00798785,1876.7,1876.5,1.06574]
[1742133332688,1.07368785,1876.7,1876.6,1.3515]
[1742133333490,1.06579,1876.5,1876.4,0.00798785]
[1742133333689,4.27359,1876.5,1876.4,1.35948785]
[1742133333889,4.27359,1876.5,1876.4,0.00798785]
[1742133334087,1.06613,1875.9,1875.8,1.3515]
[1742133334387,3.2078,1875.9,1875.8,1.3515]
[1742133334580,2.665,1876.2,1875.8,1.3515]
[1742133334890,7.1318,1876.3,1875.8,4.01693]
[1742133335089,1.4566,1876.5,1876.0,3.2078]
[1742133335294,2.67227785,1876.7,1876.2,1.06593]
[1742133335295,1.06592,1876.3,1876.2,1.06593]
[1742133335486,1.06592,1876.3,1876.2,1.4549]
[1742133335884,1.06607,1876.0,1875.9,0.35392644]
[1742133336086,3.2078,1876.3,1875.9,0.35392644]
[1742133336289,2.66462,1876.4,1876.0,1.06605]
[1742133336492,1.06607,1876.0,1875.9,1.42001644]
[1742133336692,1.066,1876.2,1876.1,1.066]
[1742133337091,3.2078,1876.3,1876.0,2.52093]
[1742133337092,1.06601,1876.1,1876.0,2.52093]
[1742133337691,1.4566,1876.5,1876.1,1.066]
[1742133337692,1.066,1876.2,1876.1,1.066]
[1742133337883,1.06601,1876.1,1876.0,1.4549]
[1742133338089,1.066,1876.2,1876.1,1.066]
[1742133338288,3.2078,1876.5,1876.0,1.4549]
[1742133338485,2.66462,1876.4,1876.0,4.6627]
[1742133338687,1.06601,1876.1,1876.0,1.4549]
[1742133338995,1.06601,1876.1,1876.0,2.52097]
[1742133341499,1.066,1876.2,1876.1,1.066]
[1742133341892,1.06601,1876.1,1876.0,2.52093]
[1742133342990,1.06601,1876.1,1876.0,1.4549]
[1742133343196,1.06619,1875.8,1875.7,0.6744]
[1742133343399,1.06617,1875.9,1875.8,1.06617]
[1742133343890,1.4594,1876.0,1875.7,4.5984]
[1742133343891,1.06619,1875.8,1875.7,5.6646]
[1742133344089,3.2078,1876.1,1876.0,1.06607]
[1742133344288,2.66462,1876.4,1875.7,4.5984]
[1742133344289,1.06598,1876.2,1876.1,1.06597]
[1742133344488,3.2078,1876.4,1876.2,1.06594]
[1742133344489,4.6363,1876.4,1876.2,1.06594]
[1742133344683,4.6363,1876.4,1876.3,1.0659]
[1742133344890,3.2078,1876.4,1876.3,1.0659]
[1742133345095,4.27364,1876.4,1876.3,1.0659]
[1742133345689,4.27364,1876.4,1876.3,2.3999]
[1742133346296,4.27364,1876.4,1876.3,1.334]
[1742133346597,1.06584,1876.4,1876.3,1.334]
[1742133346892,4.27364,1876.4,1876.3,1.334]
[1742133347489,5.87252,1876.4,1875.6,6.22737644]
[1742133347689,5.87252,1876.4,1875.8,1.06614]
[1742133347690,1.06614,1875.9,1875.8,1.06614]
[1742133347891,1.0661,1876.0,1875.9,1.06609]
[1742133348390,3.2078,1876.2,1875.8,3.35647]
[1742133348597,1.06604,1876.1,1876.0,1.06604]
[1742133348783,1.3817,1876.3,1876.2,1.06591]
[1742133348784,1.06592,1876.3,1876.2,1.06591]
[1742133348988,1.06595,1876.3,1876.2,1.06594]
[1742133349987,3.21578785,1876.7,1876.2,6.425]
[1742133350183,3.21578785,1876.7,1876.5,3.2078]
[1742133350184,0.00798785,1876.7,1876.5,3.2078]
[1742133350389,1.07371785,1876.7,1876.6,2.47233]
[1742133350595,1.07371785,1876.7,1876.6,1.4066]
[1742133351194,1.07371785,1876.7,1876.6,2.47233]
[1742133351493,1.06557,1876.9,1876.8,1.06562]
[1742133351999,4.27326,1877.1,1877.0,1.06545]
[1742133352189,1.06546,1877.1,1877.0,1.06545]
[1742133352690,1.06546,1877.1,1877.0,1.4066]
[1742133352895,2.48936,1877.1,1877.0,1.4066]
[1742133353099,1.0655,1877.0,1876.9,0.00798785]
[1742133353395,6.3826,1877.0,1876.9,0.00798785]
[1742133354596,1.06549,1877.1,1876.9,0.00798785]
[1742133354800,6.37290785,1877.2,1877.1,1.06545]
[1742133354999,5.30748785,1877.2,1877.1,1.06545]
[1742133355292,4.63968785,1877.2,1877.1,1.06545]
[1742133355488,1.43188785,1877.2,1877.1,1.06545]
[1742133355884,0.00798785,1877.2,1877.1,1.06545]
[1742133357398,0.00798785,1877.2,1877.1,4.27325]
[1742133358888,4.9703,1877.6,1877.5,1.06522]
[1742133359093,1.06531,1877.4,1877.3,1.06528]
[1742133359290,1.06539,1877.3,1877.2,1.06536]
[1742133359687,1.06532,1877.4,1877.3,1.06529]
[1742133360300,2.39275785,1877.5,1877.4,1.06528]
[1742133360497,1.07320785,1877.5,1877.4,1.06528]
[1742133360691,1.07320785,1877.5,1877.2,2.66346]
[1742133360692,1.32748785,1877.5,1877.2,2.66346]
[1742133360897,0.00798785,1877.5,1877.4,1.06528]
[1742133361104,1.07320785,1877.5,1877.4,1.06528]
[1742133361402,1.06528,1877.4,1877.3,1.73539]
[1742133362499,1.06528,1877.4,1877.3,5.64639]
[1742133362698,1.32748785,1877.5,1877.4,1.06528]
[1742133362699,2.39273785,1877.5,1877.4,1.06528]
[1742133363198,1.06528,1877.4,1877.3,4.97629]
[1742133363405,2.49968,1877.4,1877.3,4.97629]
[1742133363607,1.78635785,1877.5,1877.4,1.06528]
[1742133363808,3.22075785,1877.5,1877.4,1.06528]
[1742133364301,2.15548785,1877.5,1877.4,1.06528]
[1742133364500,1.07320785,1877.5,1877.4,1.06528]
[1742133365301,2.40160785,1877.5,1877.4,1.06528]
[1742133366800,0.00798785,1877.5,1877.4,1.06528]
[1742133366996,7.54209355,1878.1,1877.9,1.06496]
[1742133367305,1.3284,1878.0,1877.6,3.897]
[1742133367599,1.06516,1877.7,1877.6,1.06515]
[1742133367799,5.87029,1877.9,1877.7,1.06508]
[1742133367800,1.0651,1877.8,1877.7,1.06508]
[1742133368101,1.3284,1877.8,1877.5,1.3467]
[1742133368288,1.3284,1877.8,1877.5,0.6591]
[1742133368289,1.06516,1877.6,1877.5,0.6591]
[1742133368495,1.06533,1877.3,1877.2,1.72447]
[1742133368701,1.06532,1877.4,1877.3,1.06532]
[1742133368988,1.06533,1877.3,1877.2,1.72444]
[1742133369194,1.06532,1877.4,1877.3,1.06531]
[1742133369392,2.46472,1877.4,1877.3,1.06531]
[1742133369799,1.06533,1877.3,1877.2,1.72445]
[1742133369995,2.46472,1877.4,1877.3,1.06533]
[1742133370200,1.3994,1877.4,1877.3,1.06533]
[1742133370401,2.46468,1877.4,1877.3,1.06533]
[1742133370802,2.46468,1877.4,1877.3,2.43313]
[1742133371401,1.06545,1877.1,1877.0,1.06549]
[1742133371605,1.06543,1877.2,1877.1,1.06542]
[1742133371904,1.3994,1877.4,1877.2,1.06534]
[1742133372097,1.06535,1877.3,1877.2,1.06534]
[1742133372407,2.46471,1877.4,1877.3,1.06533]
[1742133372902,1.06539,1877.2,1877.1,3.13068]
[1742133373106,1.06539,1877.2,1877.1,1.77048]
[1742133373305,1.06537,1877.3,1877.2,1.06536]
[1742133373696,1.06539,1877.2,1877.1,1.77051]
[1742133373896,1.3841,1877.2,1877.0,1.06546]
[1742133374195,2.44954,1877.2,1877.1,1.06545]
[1742133375109,1.3841,1877.2,1877.1,1.06545]
[1742133375308,3.2078,1877.3,1877.2,1.06539]
[1742133375509,5.72709,1877.6,1877.5,1.06522]
[1742133376104,2.51929,1877.6,1877.5,1.06522]
[1742133376813,1.06528,1877.5,1877.4,1.06526]
[1742133377000,1.0652,1877.6,1877.5,1.06522]
[1742133377201,1.06515,1877.7,1877.6,1.06515]
[1742133377402,2.43835,1877.7,1877.6,1.06515]
[1742133377602,1.06515,1877.7,1877.6,1.06515]
[1742133377799,1.06513,1877.7,1877.4,2.66318]
[1742133378003,1.06521,1877.6,1877.5,1.06521]
[1742133378205,2.43841,1877.6,1877.5,1.06521]
[1742133379304,1.3732,1877.6,1877.5,1.06521]
[1742133380706,2.43836,1877.6,1877.5,1.06521]
[1742133381212,1.3732,1877.6,1877.5,1.06521]
[1742133382010,2.43836,1877.6,1877.5,1.06521]
[1742133382413,0.6735,1877.8,1877.7,1.06511]
[1742133382607,1.73859,1877.8,1877.7,1.06511]
[1742133383610,1.07299785,1877.9,1877.8,1.06505]
[1742133383816,0.00798785,1877.9,1877.8,1.06505]
[1742133384013,0.00798785,1877.9,1877.8,1.78675]
[1742133384215,1e-08,1877.9,1877.8,2.49425]
[1742133386317,4.29849355,1878.4,1877.8,2.49425]
[1742133386509,1.4605,1878.1,1878.0,1.06494]
[1742133386818,2.52538,1878.1,1878.0,1.06494]
[1742133387121,1.4605,1878.1,1878.0,1.06494]
[1742133387315,2.52538,1878.1,1878.0,1.06494]
[1742133388120,0.00798785,1878.2,1878.1,1.06488]
[1742133388309,1.07280785,1878.2,1878.1,1.06488]
[1742133388818,0.00798785,1878.2,1878.1,1.06488]
[1742133389713,1.06489,1878.1,1878.0,1.06492]
[1742133390010,1.07284785,1878.2,1878.1,1.06488]
[1742133390210,1.06489,1878.1,1878.0,1.06491]
[1742133390413,2.48489,1878.1,1878.0,1.06491]
[1742133390809,0.00798785,1878.2,1878.1,1.06488]
[1742133391412,1.07280785,1878.2,1878.1,1.06488]
[1742133391609,0.00798785,1878.2,1878.1,1.06488]
[1742133392519,0.00798785,1878.2,1878.1,2.52968]
[1742133396122,1.07280785,1878.2,1878.1,1.4648]
[1742133396326,1.06494,1878.0,1877.9,0.00798785]
[1742133396624,4.27274,1878.0,1877.9,1e-08]
[1742133396816,1.06494,1878.0,1877.9,1e-08]
[1742133397014,3.11214,1878.0,1877.9,1e-08]
[1742133397431,6.31994,1878.0,1877.9,1e-08]
[1742133397821,3.11214,1878.0,1877.9,1e-08]
[1742133398024,1.06494,1878.0,1877.9,1e-08]
[1742133398327,2.41614,1878.0,1877.9,1e-08]
[1742133398725,1.06494,1878.0,1877.9,5.24520001]
[1742133398933,1.06494,1878.0,1877.9,2.03740001]
[1742133399224,1.06494,1878.0,1877.9,1e-08]
[1742133399621,2.41334,1878.0,1877.9,1e-08]
[1742133399823,5.62114,1878.0,1877.9,1e-08]
[1742133400225,2.41334,1878.0,1877.9,1e-08]
[1742133400929,2.41334,1878.0,1877.9,1.33040001]
[1742133401126,5.62114,1878.0,1877.9,1.33040001]
[1742133401421,5.62114,1878.0,1877.9,1e-08]
[1742133402221,9.45814,1878.0,1877.9,1e-08]
[1742133404339,5.62114,1878.0,1877.9,1e-08]
[1742133409036,8.12114,1878.0,1877.9,1e-08]
[1742133409227,11.75093355,1878.0,1877.9,1e-08]
[1742133409833,10.68599355,1878.0,1877.0,0.6813]
[1742133410036,1.06556,1876.9,1876.8,2.1285]
[1742133410337,1.06556,1876.9,1876.8,1.4644]
[1742133410634,4.27336,1876.9,1876.8,1.4644]
[1742133411031,5.65366,1876.9,1876.8,1.4644]
[1742133411334,2.44586,1876.9,1876.8,1.4644]
[1742133411723,1.06556,1876.9,1876.8,2.53002]
[1742133412026,1.06556,1876.9,1876.8,2.52998]
[1742133412738,0.00798785,1877.0,1876.9,1.06556]
[1742133413041,1.07348785,1877.0,1876.9,3.17506]
[1742133413737,1.06541,1877.2,1876.9,3.17506]
[1742133413933,1.06529,1877.4,1877.1,3.2078]
[1742133414237,1.06521,1877.6,1877.5,1.0652]
[1742133414437,1.06513,1877.7,1877.6,1.06512]
[1742133414637,1.06516,1877.6,1877.5,1.3601]
[1742133415339,1.06516,1877.6,1877.5,2.42532]
[1742133416338,1.07313785,1877.7,1877.6,1.06516]
[1742133416541,0.00798785,1877.7,1877.6,5.63306]
[1742133416943,4.27278,1878.0,1877.9,1.06499]
[1742133417337,3.2078,1878.0,1877.9,1.06499]
[1742133417544,3.62979355,1878.5,1877.9,1.06499]
[1742133417545,0.6708,1878.5,1878.3,1.06473]
[1742133417745,1.06477,1878.3,1878.2,4.27258]
[1742133418235,1.07273785,1878.4,1878.3,1.06477]
[1742133418432,0.00798785,1878.4,1878.3,1.78297]
[1742133418632,1.07269785,1878.4,1878.3,0.7182]
[1742133419548,1.07269785,1878.4,1878.3,1.78297]
[1742133420343,1.07269785,1878.4,1878.3,0.7182]
[1742133420542,1.07269785,1878.4,1878.3,1.78297]
[1742133420849,1.07269785,1878.4,1878.3,0.7182]
[1742133421444,1.06456,1878.7,1878.3,10.37889]
[1742133421645,12.01069355,1879.1,1878.7,1.06454]
[1742133421838,1.06441,1879.0,1878.6,7.0048]
[1742133422037,7.0048,1879.3,1878.6,7.0048]
[1742133422038,1.06431,1879.2,1878.8,3.2078]
[1742133422347,1.06431,1879.2,1879.1,1.06431]
[1742133422546,0.00525317,1879.2,1879.1,1.06431]
[1742133422941,0.00525317,1879.2,1878.9,0.6631]
[1742133423141,1.06448,1878.8,1878.7,4.82482644]
[1742133423344,1.06448,1878.8,1878.7,4.4709]
[1742133423554,1.06448,1878.8,1878.7,5.53544]
[1742133424058,1.06448,1878.8,1878.7,4.4709]
[1742133424756,1.06448,1878.8,1878.7,5.53544]
[1742133424961,1.06446,1878.9,1878.7,5.53544]
[1742133425158,2.49981,1879.0,1878.8,1.06448]
[1742133425363,1.06443,1878.9,1878.7,4.4709]
[1742133425564,1.06448,1878.8,1878.7,5.53542]
[1742133425858,1.06447,1878.9,1878.7,5.53542]
[1742133426262,1.0644,1879.0,1878.8,1.06448]
[1742133426462,1.0644,1879.0,1878.9,1.06443]
[1742133426760,1.0644,1879.0,1878.8,1.06445]
[1742133426958,1.06436,1879.1,1878.9,1.06443]
[1742133427266,0.00525317,1879.2,1878.9,1.06439]
[1742133427456,1.46605317,1879.2,1879.0,1.06437]
[1742133427663,1.06953317,1879.2,1878.8,3.9147]
[1742133428157,1.06953317,1879.2,1879.1,1.06431]
[1742133428358,1.06953317,1879.2,1878.8,3.9147]
[1742133428559,0.00525317,1879.2,1879.0,1.06434]
[1742133428865,1.06954317,1879.2,1879.1,0.6722]
[1742133429664,1.06954317,1879.2,1879.1,1.73651]
[1742133430169,0.00525317,1879.2,1879.1,1.73651]
[1742133430972,0.00525317,1879.2,1879.1,3.16081]
[1742133431969,1.06412,1879.5,1879.4,1.06414]
[1742133432457,1.06408,1879.6,1879.3,3.79]
[1742133432657,1.06408,1879.6,1879.5,1.06409]
[1742133432963,1.06408,1879.6,1879.5,4.27186]
[1742133432964,1.06403,1879.6,1879.5,4.27186]
[1742133433168,1.06403,1879.6,1879.5,4.99206]
[1742133433366,1.06403,1879.6,1879.5,1.78426]
[1742133434051,1.06409,1879.5,1879.4,1.43608785]
[1742133434256,2.38779,1879.5,1879.4,1.43608785]
[1742133434865,1.06409,1879.5,1879.4,1.43608785]
[1742133435473,1.06409,1879.5,1879.4,2.50022785]
[1742133435954,1.06407,1879.6,1879.5,1.06409]
[1742133436161,1.06407,1879.6,1879.5,2.47079]
[1742133436558,2.48242,1879.7,1879.6,1.06403]
[1742133436758,1.06402,1879.7,1879.6,2.47073]
[1742133436959,1.06402,1879.7,1879.6,1.4067]
[1742133437362,1.06402,1879.7,1879.6,2.47073]
[1742133437564,1.06402,1879.7,1879.6,1.4067]
[1742133438460,2.52592,1879.7,1879.6,1.4067]
[1742133439063,2.52592,1879.7,1879.6,2.47073]
[1742133439272,1.06402,1879.7,1879.6,2.47073]
[1742133439470,5.73367,1879.8,1879.7,1.06397]
[1742133439672,3.2078,1879.8,1879.7,2.46227]
[1742133440172,4.27172,1879.8,1879.7,2.46227]
[1742133441065,1.06392,1879.8,1879.7,1.3983]
[1742133441461,1.76842,1879.8,1879.7,1.3983]
[1742133441665,3.18892,1879.8,1879.7,1.3983]
[1742133442269,3.18892,1879.8,1879.7,2.46227]
[1742133442575,3.18892,1879.8,1879.7,1.3983]
[1742133444870,2.48442,1879.8,1879.7,2.46227]
[1742133445075,1.06392,1879.8,1879.7,2.46227]
[1742133446875,3.2078,1880.0,1879.7,1.3983]
[1742133447082,1.06391,1879.9,1879.8,2.0806]
[1742133447280,2.51771,1879.9,1879.8,2.0806]
[1742133447782,2.51771,1879.9,1879.8,1.4193]
[1742133450184,1.06397,1879.7,1879.6,0.6708]
[1742133450879,1.06409,1879.5,1879.4,4.27989785]
[1742133451074,1.06409,1879.5,1879.4,0.00798785]
[1742133451479,2.44129,1879.5,1879.4,0.00798785]
[1742133451993,2.44129,1879.5,1879.4,1.33628785]
[1742133453087,0.6621,1879.7,1879.4,2.40037785]
[1742133453387,1.06408,1879.6,1879.5,1.06409]
[1742133453581,1.06401,1879.7,1879.5,2.52423]
[1742133453781,1.06401,1879.7,1879.6,1.4602]
[1742133456088,2.51861,1879.7,1879.6,1.4602]
[1742133456985,1.06401,1879.7,1879.6,2.52423]
[1742133457184,1.06401,1879.7,1879.6,1.4602]
[1742133460789,2.44001,1879.7,1879.6,1.4602]
[1742133461690,1.06401,1879.7,1879.6,2.52423]
[1742133461885,1.06396,1879.8,1879.7,1.06396]
[1742133462086,1.06396,1879.8,1879.7,1.77126]
[1742133462897,1.06396,1879.8,1879.7,0.7073]
[1742133463584,1.06396,1879.8,1879.7,3.15297]
[1742133469698,1.06389,1879.9,1879.8,1.06386]
[1742133469997,1.06389,1879.9,1879.8,2.52432]
[1742133473094,1.06378,1880.1,1880.0,1.0638]
[1742133473499,2.42748,1880.1,1880.0,1.0638]
[1742133473699,1.06363,1880.3,1880.2,1.06366]
[1742133473899,2.42733,1880.3,1880.2,1.06366]
[1742133474200,1.0636,1880.4,1880.3,1.06363]
[1742133475101,1.06363,1880.3,1880.2,2.51845]
[1742133476399,2.43871,1880.4,1880.3,1.06363]
[1742133476706,2.43871,1880.4,1880.3,2.51843]
[1742133476896,2.43871,1880.4,1880.3,1.4548]
[1742133477094,3.16171,1880.4,1880.3,1.4548]
[1742133478401,3.16171,1880.4,1880.3,2.51843]
[1742133478597,1.06358,1880.4,1880.3,1.4548]
[1742133479193,2.43457,1880.5,1880.4,1.06358]
[1742133479797,1.06358,1880.4,1880.3,2.51839]
[1742133480706,2.43457,1880.5,1880.4,1.06358]
[1742133480906,2.43457,1880.5,1880.4,2.39158]
[1742133481894,2.43457,1880.5,1880.4,1.328]
[1742133483105,3.2078,1880.7,1880.4,1.328]
[1742133483297,1.06346,1880.6,1880.5,0.6983]
[1742133483501,2.42036,1880.6,1880.5,0.6983]
[1742133484296,2.42036,1880.6,1880.5,2.0191]
[1742133484698,2.42036,1880.6,1880.5,1.3208]
[1742133485707,1.06352,1880.5,1880.4,1.32878785]
[1742133485907,2.42042,1880.5,1880.4,1.32878785]
[1742133487104,1.0638,1880.0,1879.9,0.35392644]
[1742133487306,1.06386,1879.9,1879.8,1.74699]
[1742133487807,1.06386,1879.9,1879.8,0.6831]
[1742133488602,1.06392,1879.8,1879.7,1.35978785]
[1742133490513,1.06392,1879.8,1879.7,2.42375785]
[1742133490711,1.06392,1879.8,1879.7,1.35978785]
[1742133492705,1.06392,1879.8,1879.7,2.42375785]
[1742133492911,2.3935,1879.9,1879.8,1.06392]
[1742133493111,2.3935,1879.9,1879.8,2.49422]
[1742133493416,0.00798784,1880.0,1879.9,1.06386]
[1742133493617,0.00798784,1880.0,1879.9,2.51876]
[1742133494018,1.06371,1880.2,1880.1,1.06375]
[1742133494610,4.27146,1880.3,1880.2,1.06369]
[1742133494815,1.06365,1880.3,1880.2,1.06365]
[1742133495311,1.06365,1880.3,1880.2,2.49395]
[1742133496117,1.0636,1880.4,1880.3,1.06359]
[1742133496314,1.0636,1880.4,1880.3,1.77369]
[1742133497526,3.2078,1880.8,1880.3,3.9179]
[1742133497731,1.06352,1880.5,1880.4,6.79097]
[1742133498910,1.0635,1880.6,1880.5,1.0635]
[1742133499112,1.0635,1880.6,1880.5,2.4336]
[1742133499620,2.41113,1880.7,1880.6,1.06346]
[1742133499826,2.41113,1880.7,1880.6,1.3701]
[1742133500220,2.41113,1880.7,1880.6,2.43356]
[1742133500420,4.27119,1880.8,1880.7,1.06341]
[1742133500721,4.27119,1880.8,1880.7,3.14191]
[1742133500917,3.2078,1880.8,1880.7,3.14191]
[1742133501121,1.4178,1881.0,1880.9,1.06329]
[1742133501122,1.78826,1881.0,1880.9,1.06329]
[1742133501524,2.46112,1881.1,1880.9,1.06329]
[1742133501725,2.46111,1881.1,1881.0,1.3701]
[1742133502129,2.46111,1881.1,1881.0,2.43334]
[1742133502333,2.46111,1881.1,1881.0,1.3701]
[1742133502627,5.66891,1881.1,1881.0,1.3701]
[1742133503128,1.06329,1880.9,1880.8,0.68478785]
[1742133504331,4.27109,1880.9,1880.8,0.00798785]
[1742133504529,4.97009,1880.9,1880.8,0.00798785]
[1742133504735,4.97009,1880.9,1880.8,1.34998785]
[1742133505133,1.76229,1880.9,1880.8,1.34998785]
[1742133505335,4.97009,1880.9,1880.8,0.00798785]
[1742133505732,4.97009,1880.9,1880.8,0.00273467]
[1742133506033,8.59988355,1880.9,1880.8,0.00273467]
[1742133506238,7.90088355,1880.9,1880.8,0.00273467]
[1742133506431,8.59988355,1880.9,1880.8,0.00273467]
[1742133508429,7.90088355,1880.9,1880.8,0.00273467]
[1742133509127,9.25568355,1880.9,1880.8,0.00273467]
[1742133509332,11.75568355,1880.9,1880.8,0.00273467]
[1742133510040,9.25568355,1880.9,1880.8,0.00273467]
[1742133515747,14.32839355,1880.9,1880.1,1.06372]
[1742133515935,3.2078,1880.3,1880.1,0.7156]
[1742133516139,4.27143,1880.3,1880.2,1.3385]
[1742133516439,1.06369,1880.2,1880.1,0.7156]
[1742133516644,1.06369,1880.2,1879.8,3.644]
[1742133516645,1.06386,1879.9,1879.8,3.644]
[1742133517045,1.06392,1879.8,1879.7,1.40528785]
[1742133517543,1.06392,1879.8,1879.7,0.72358785]